Cogmind - Beta 15 @@@ ROGUE MODE // 2025.07.15 @ 09:31:52 Player: korgoth Result: Destroyed by P-80 Master with Gamma Rifle Performance ------------- Evolutions (8) 4000 Regions Visited (21) 4200 Robots Destroyed (77) 385 Value Destroyed (2285) 2285 Prototype IDs (40) 800 Alien Tech Used (0) 0 Bonus (657) 657 TOTAL SCORE: 12327 Bonus ------- Follower Combat Kills 57 Aligned with FarCom 300 Met Imprinter 300 Cogmind --------- Core Integrity 0/1450 Matter 73/300 Energy 99/100 System Corruption 35% Temperature Cool (0) Movement Core (50) Location -2/Research Parts ------- > --- POWER (2) -------- (None) > --- PROPULSION (6) --- (None) > --- UTILITY (13) ----- Spectral Analyzer 0b10 Decoder Chip [Generic] Improved Corruption Screen > --- WEAPON (2) ------- (None) > --- INVENTORY (5) ---- Light Antimatter Reactor Peak State ------------ > --- POWER ------------ Micro Antimatter Reactor Improved Quantum Reactor > --- PROPULSION ------- Antigrav System Antigrav System Antigrav System Cooled Gravmag System Antigrav Array > --- UTILITY ---------- Advanced Heat Sink Medium Storage Unit Spectral Analyzer Advanced Signal Interpreter 0b10 Decoder Chip [Generic] Improved Targeting Computer Advanced Targeting Computer Experimental Transmission Jammer Layered Light Armor Plating System Shield Hacking Drone Bay > --- WEAPON ----------- Linear Accelerator Enhanced Force Lance > --- INVENTORY -------- Micro Fission Core Improved Antigrav System Improved Antigrav System Improved Linear Gravjet Small Storage Unit Experimental EM Shield Quantum Rifle Enhanced Nova Cannon Smartbomb Launcher [Rating: 137] Favorites ----------- Power Micro Nuclear Core Engine Light Ion Engine Power Core Micro Nuclear Core Reactor Micro Antimatter Reactor Propulsion Antigrav System Leg Improved VSS Leg Wheel Wheel Hover Unit Antigrav System Flight Unit Flight Unit Utility Hacking Suite Device Improved Terrain Scanner Storage Large Storage Unit Processor Advanced Targeting Computer Hackware Hacking Suite Protection Layered Light Armor Plating Weapon Assault Rifle Energy Gun EM Pulse Gun Energy Cannon Nova Cannon Ballistic Gun Assault Rifle Ballistic Cannon Advanced Assault Cannon Launcher Long-range Missile Launcher Special Weapon RU-N14's Throwing Claymores Impact Weapon Powered Hammer Slashing Weapon Power Sword Piercing Weapon Enhanced Force Lance Build | -11 -10 -10 -9 -9 -9 -8 -8 -7 -7 -7 -6 -6 -6 -6 -5 -5 -4 -4 -4 -3 -2 ------- Run | Yrd Mat Min Mat Min Exi Min Mat Fac Low Low Fac Low Low Zio Pro Fac Fac Upp Upp Res Res Slots Evolved 16 | . . . 2 . . . 2 2 . . 2 . . . . 2 2 . . 2 2 Power 1 | . . . . . . . . . . . 1 . . . . . . . . . . Propulsion 4 | . . . 1 . . . . 1 . . . . . . . . 1 . . . 1 Utility 11 | . . . 1 . . . 2 1 . . 1 . . . . 2 1 . . 2 1 Weapon . | . . . . . . . . . . . . . . . . . . . . . . Parts Attached 121 | 7 5 . 5 2 1 1 12 17 2 2 14 2 2 7 4 9 7 . 1 5 16 Power 14 | 1 1 . 1 . . . 1 2 1 . 1 1 . 1 . 1 . . 1 . 2 Engine 4 | 1 1 . . . . . . 1 . . 1 . . . . . . . . . . Core 8 | . . . 1 . . . 1 1 1 . . 1 . 1 . 1 . . 1 . . Reactor 2 | . . . . . . . . . . . . . . . . . . . . . 2 Propulsion 36 | 2 2 . 1 1 . . 5 1 . 1 7 . . . 2 5 4 . . . 5 Treads . | . . . . . . . . . . . . . . . . . . . . . . Leg 1 | . . . . . . . . . . . 1 . . . . . . . . . . Wheel 8 | 2 2 . 1 1 . . 1 1 . . . . . . . . . . . . . Hover 22 | . . . . . . . . . . 1 5 . . . 2 5 4 . . . 5 Flight 5 | . . . . . . . 4 . . . 1 . . . . . . . . . . Utility 47 | 2 1 . 2 1 1 . 4 11 1 . 4 1 2 4 . 2 1 . . 4 6 Device 16 | 1 . . . . 1 . 2 4 . . . 1 1 . . 1 1 . . 1 3 Storage 8 | 1 1 . 1 . . . 2 1 . . . . . . . . . . . 1 1 Processor 12 | . . . . 1 . . . 4 . . 1 . . 3 . 1 . . . . 2 Hackware 6 | . . . . . . . . . . . 3 . 1 1 . . . . . 1 . Protection 5 | . . . 1 . . . . 2 1 . . . . . . . . . . 1 . Artifact . | . . . . . . . . . . . . . . . . . . . . . . Weapon 24 | 2 1 . 1 . . 1 2 3 . 1 2 . . 2 2 1 2 . . 1 3 Energy Gun 4 | 1 . . . . . . . 1 . . 1 . . . . . 1 . . . . Energy Cannon 1 | . . . . . . . . . . . . . . . . . . . . 1 . Ballistic Gun 5 | 1 1 . . . . 1 . . . . 1 . . . 1 . . . . . . Ballistic Cannon 5 | . . . 1 . . . . 2 . . . . . . 1 . . . . . 1 Launcher 3 | . . . . . . . 1 . . . . . . . . 1 . . . . 1 Special Weapon 1 | . . . . . . . . . . . . . . 1 . . . . . . . Impact Weapon 2 | . . . . . . . 1 . . 1 . . . . . . . . . . . Slashing Weapon 1 | . . . . . . . . . . . . . . . . . 1 . . . . Piercing Weapon 2 | . . . . . . . . . . . . . . 1 . . . . . . 1 Special Melee Weapon . | . . . . . . . . . . . . . . . . . . . . . . Unidentified Prototypes 17 | . . . . . 1 . . 1 . . 3 . . 5 . 1 1 . . 2 3 Parts Lost 67 | . 1 . . . . . 13 1 1 11 . . 4 1 5 . . 2 1 1 26 Power 9 | . . . . . . . 2 . . 2 . . . . 1 . . 1 . . 3 Propulsion 20 | . 1 . . . . . 5 . . 3 . . 1 . 3 . . . . 1 6 Utility 25 | . . . . . . . 3 . 1 3 . . 2 1 . . . . 1 . 14 Weapon 13 | . . . . . . . 3 1 . 3 . . 1 . 1 . . 1 . . 3 Highest Loss Streak 20 | . 1 . . . . . 8 1 1 11 . . 3 1 3 . . 2 3 1 20 To Critical Strikes . | . . . . . . . . . . . . . . . . . . . . . . Average Backups 9 | 2 8 10 12 13 13 14 10 10 13 6 6 8 7 7 7 6 6 8 7 6 6 Power . | . 1 1 1 1 1 1 . 1 1 . . 1 1 . . . . . . . . Propulsion 3 | 1 4 5 4 4 5 5 2 . 1 . 3 4 3 3 1 . 2 3 3 4 2 Utility 3 | . 1 3 3 4 5 6 5 7 9 5 1 1 1 2 4 2 1 3 3 . . Weapon 1 | . 1 1 2 3 2 2 1 1 2 . . 1 . . 2 2 1 2 1 1 3 Tool/Special . | . . . . . . . . . . . . . . . . . . . . . . Unused Backups 21 | . 2 . . 2 . 1 . 1 . . 6 . . . . . 2 . . 1 6 Power 4 | . . . . . . . . . . . . . . . . . 2 . . 1 1 Propulsion 8 | . 2 . . . . . . . . . 5 . . . . . . . . . 1 Utility 2 | . . . . . . . . . . . 1 . . . . . . . . . 1 Weapon 7 | . . . . 2 . 1 . 1 . . . . . . . . . . . . 3 Tool/Special . | . . . . . . . . . . . . . . . . . . . . . . Average Slot Usage (%) 87 | . 98 100 88 93 96 88 59 77 80 32 75 93 89 94 96 92 99 98 93 99 85 Engine 2 | . 14 14 10 . . . . . . . 5 2 . . . . . . . . . Core 6 | . . . . 11 11 11 5 6 7 1 . 4 6 8 12 7 10 9 8 9 4 Wheel 14 | . 26 28 33 33 33 33 15 14 15 2 . . . . . . . . . . . Hover 9 | . . . . . . . . . . . 17 26 25 26 25 20 26 26 26 22 19 Device 9 | . 14 14 11 10 11 11 12 16 4 . 3 6 5 1 . 4 9 10 6 8 10 Storage 7 | . 14 14 11 11 11 11 10 7 7 1 3 6 6 6 6 4 5 5 5 4 3 Processor 11 | . . . . 5 7 . . 9 23 17 13 13 13 18 20 22 21 21 21 19 20 Hackware 6 | . . . . . . . . . . . 17 20 18 19 20 17 15 15 15 18 8 Protection 1 | . . . . . . . . 7 6 1 . . . . . . . . . 4 3 Energy Gun 2 | . 14 14 4 . . . . 3 . . 3 6 5 . . . 1 . 5 1 . Ballistic Gun 6 | . 14 14 11 11 11 21 8 . . . 5 5 5 6 1 3 . . . . . Ballistic Cannon 4 | . . . 6 11 11 . . 6 15 1 . . . . 3 4 4 4 5 . 3 Peak Build Rating 137 | 9 10 10 15 18 28 30 39 45 46 43 65 65 61 74 74 94 110 109 104 122 137 Average Rating 54 | 4 9 10 12 16 21 29 27 37 44 15 51 62 58 68 66 77 105 107 103 119 125 On Entrance 48 | . 9 10 10 15 18 28 30 15 45 43 11 65 60 54 74 59 94 109 98 104 114 Naked Turns . | . . . . . . . . . . . . . . . . . . . . . . Heaviest Build 62 | 13 18 18 32 32 45 45 49 62 45 44 32 32 22 26 30 39 42 42 32 47 62 Greatest Support 72 | 20 20 20 30 32 32 32 32 56 56 56 34 32 34 34 34 44 55 55 55 55 72 Greatest Overweight (x) 19 | . 1 . 1 . 1 1 2 1 . . 3 . . . 1 . . . . . 19 Average Overweight (x) . | . . . . . . 1 . . . . . . . . . . . . . . . Largest Inventory Capacity 15 | 8 10 10 15 15 15 15 15 15 15 15 8 8 8 8 8 8 8 8 8 8 10 Average Capacity 11 | 7 9 10 14 15 15 15 12 14 15 6 6 8 8 8 8 7 8 8 8 8 8 Most Carried 15 | 7 10 10 15 15 15 15 15 15 14 13 8 8 8 8 8 8 8 8 8 8 10 Average Carried 10 | 3 8 10 12 13 14 14 10 10 13 6 6 7 7 7 7 6 6 8 7 7 7 Final Capacity 15 | 8 10 10 15 15 15 15 10 15 15 5 8 8 8 8 8 8 8 8 8 8 5 Final Carried 15 | 6 10 10 14 15 15 15 9 13 13 5 8 8 6 8 8 7 8 8 8 8 1 Class Distribution -------------------- 35% | Mutant 32% | Hacker-Mutant 24% | Scavenger-Mutant 5% | Skirmisher Dominant Class ---------------- Mutant | -10/Materials Mutant | -10/Mines Mutant | -9/Materials Scavenger-Mutant | -9/Mines Scavenger-Mutant | -9/Exiles Scavenger-Mutant | -8/Mines Mutant | -8/Materials Skirmisher | -7/Factory Mutant | -7/Lower Caves Mutant | -7/Lower Caves Hacker-Mutant | -6/Factory Hacker-Mutant | -6/Lower Caves Hacker-Mutant | -6/Lower Caves Hacker-Mutant | -6/Zion Hacker-Mutant | -5/Proximity Caves Hacker-Mutant | -5/Factory Hacker-Mutant | -4/Factory Hacker-Mutant | -4/Upper Caves Hacker-Mutant | -4/Upper Caves Hacker-Mutant | -3/Research Scavenger-Mutant | -2/Research Resources | -11 -10 -10 -9 -9 -9 -8 -8 -7 -7 -7 -6 -6 -6 -6 -5 -5 -4 -4 -4 -3 -2 ----------- Run | Yrd Mat Min Mat Min Exi Min Mat Fac Low Low Fac Low Low Zio Pro Fac Fac Upp Upp Res Res Matter Collected 2473 | 208 151 10 80 72 . 62 245 15 446 51 20 267 79 61 108 . 252 96 101 . 149 Remotely . | . . . . . . . . . . . . . . . . . . . . . . Salvage Created 2020 | 15 258 . 105 49 . 71 200 15 176 120 89 249 103 . 155 . 47 103 97 . 168 Parts 132 | 6 13 . 6 8 . 5 11 1 15 5 7 7 8 . 4 . 3 9 9 . 15 Haulers Intercepted . | . . . . . . . . . . . . . . . . . . . . . . Recyclers Shooed . | . . . . . . . . . . . . . . . . . . . . . . Parts Field Recycled . | . . . . . . . . . . . . . . . . . . . . . . Retrieved Matter . | . . . . . . . . . . . . . . . . . . . . . . Parts Self-Destructed 50 | . . . . . . . . . 15 6 . 4 9 . 2 . . 7 7 . . Prevented 6 | . . . . . . . . . . 1 . 3 . . 2 . . . . . . Kills | -11 -10 -10 -9 -9 -9 -8 -8 -7 -7 -7 -6 -6 -6 -6 -5 -5 -4 -4 -4 -3 -2 ------- Run | Yrd Mat Min Mat Min Exi Min Mat Fac Low Low Fac Low Low Zio Pro Fac Fac Upp Upp Res Res Combat Hostiles Destroyed 59 | . 5 . 2 3 . 4 6 . 9 6 1 5 4 . 3 . . 7 2 . 2 Melee 5 | . . . . . . . 1 . . 3 . . . . 1 . . . . . . Guns 28 | . 5 . . 3 . 3 5 . . 1 1 5 4 . . . . . 1 . . Cannons 17 | . . . 2 . . 1 . . 9 1 . . . . . . . 1 1 . 2 AOE 6 | . . . . . . . . . . . . . . . . . . 6 . . . Classes Destroyed 13 | 1 5 . . . . 1 3 . 2 . . 1 . . . . . . . . . Worker 3 | . . . . . . . 1 . . . . . . . . . . . . . 2 Builder 2 | . . . . . . . 1 . . . 1 . . . . . . . . . . Tunneler 1 | 1 . . . . . . . . . . . . . . . . . . . . . Recycler 2 | . 2 . . . . . . . . . . . . . . . . . . . . Operator 4 | . 1 . . . . . 1 1 . . . . . . . . 1 . . . . Watcher 6 | . 1 . 2 . . . . . . . 1 . . . . . 2 . . . . Swarmer 36 | . 3 . . 3 . 3 4 . 7 6 . 1 4 . . . . 5 . . . Grunt 9 | . 2 . 2 . . . 1 . . . . 1 . . 2 . . 1 . . . Duelist 4 | . . . . . . . 1 . . . . 2 . . 1 . . . . . . Sentry 2 | . . . . . . . . . . . . 1 . . . . . 1 . . . Hunter 1 | . . . . . . 1 . . . . . . . . . . . . . . . Programmer 6 | . . . . . . . . . 1 . 1 . . . . . . . 2 . 2 Thief 1 | . . . . . . . . . 1 . . . . . . . . . . . . Best Kill Streak 7 | 1 5 . 2 3 . 3 5 1 4 4 2 5 4 . 3 . 1 7 2 . 2 Combat Bots Only 7 | . 3 . 2 3 . 3 5 . 4 4 1 5 4 . 3 . . 7 2 . 2 Max Kills in Single Turn 4 | 1 2 . 1 1 . 1 2 1 2 1 2 1 1 . 1 . 1 4 1 . 1 Gunslinging . | . . . . . . . . . . . . . . . . . . . . . . Exploded 4 | . . . . . . . . . . . . . . . . . . 4 . . . Melee 1 | . . . . . . . 1 . . 1 . . . . 1 . . . . . . Uniques/NPCs Destroyed . | . . . . . . . . . . . . . . . . . . . . . . Combat | -11 -10 -10 -9 -9 -9 -8 -8 -7 -7 -7 -6 -6 -6 -6 -5 -5 -4 -4 -4 -3 -2 -------- Run | Yrd Mat Min Mat Min Exi Min Mat Fac Low Low Fac Low Low Zio Pro Fac Fac Upp Upp Res Res Hostile Shots Fired 944 | . 22 . 9 8 . 23 201 . 92 121 4 63 59 . 45 . 2 31 14 38 212 Missed 322 | . 1 . 2 2 . 5 56 . 34 28 . 30 26 . 16 . 2 10 9 21 80 Hits 622 | . 21 . 7 6 . 18 145 . 58 93 4 33 33 . 29 . . 21 5 17 132 Melee 12 | . . . . . . . 4 . 3 . . 1 . . 4 . . . . . . Projectile 610 | . 21 . 7 6 . 18 141 . 55 93 4 32 33 . 25 . . 21 5 17 132 Critical Strikes 31 | . . . 3 . . . 6 . 1 2 . 1 . . 1 . . 3 . 2 12 Part Disruptions 2 | . . . . . . . . . . . . . . . . . . . . . 2 Damage Taken 11020 | . 324 . 109 46 . 194 2062 139 623 1382 62 344 388 . 581 . . 512 105 360 3789 Core 3200 | . 131 . 44 7 . 35 537 . 21 541 . 30 50 . 201 . . 99 . 41 1463 Absorbed by Shields . | . . . . . . . . . . . . . . . . . . . . . . Regen/Repaired (Parts) 488 | . 26 . . . . . 10 225 . . 82 . . . . 145 . . . . . Core Remaining (%) 66 | 100 . 47 . . . 78 2 . . 19 . . . . 66 100 . . 91 96 . Volleys Fired 149 | 2 16 . 8 4 . 11 15 1 17 7 8 15 6 . 1 . 17 7 5 . 9 Largest 2 | 2 2 . 2 2 . 2 2 2 2 2 2 2 2 . 1 . 1 2 2 . 1 Hottest 135 | 60 60 . 60 53 . 53 48 95 80 95 90 90 90 . 30 . 47 90 135 . 54 Shots Fired 260 | 4 32 . 16 8 . 22 22 2 35 12 16 30 10 . 1 . 17 13 10 . 10 Gun 157 | 4 32 . 11 4 . 18 22 1 . 3 16 30 10 . 1 . . . 5 . . Cannon 96 | . . . 5 4 . 4 . 1 35 9 . . . . . . 17 7 5 . 9 Launcher 7 | . . . . . . . . . . . . . . . . . . 6 . . 1 Special . | . . . . . . . . . . . . . . . . . . . . . . Kinetic 196 | 2 16 . 13 8 . 22 22 1 35 9 8 15 6 . 1 . 17 7 5 . 9 Thermal 5 | . . . . . . . . . . . . . . . . . . . 5 . . Explosive 7 | . . . . . . . . . . . . . . . . . . 6 . . 1 Electromagnetic 52 | 2 16 . 3 . . . . 1 . 3 8 15 4 . . . . . . . . Robot Hit Streak 9 | 2 5 . 4 3 . 6 9 4 7 6 3 4 4 . . . 3 5 5 . 6 Robot Miss Streak 5 | 1 5 . 2 2 . 2 2 . 2 4 3 2 3 . 1 . 2 1 3 . 2 Penetration Max 1 | . . . . . . . 1 . . . . . . . . . . . . . . Secondary Targets 6 | . 1 . . . . . 1 . . . . 2 2 . . . . . . . . Max Gunslinging Chain 1 | . 1 . . . . . 1 . . . . 1 1 . . . . . . . . Shots Hit Robots 173 | 3 15 . 10 3 . 15 17 1 21 15 8 19 6 . 7 . 10 9 6 . 8 Core Hits 108 | 1 11 . 7 3 . 6 8 1 11 5 5 9 4 . 1 . 5 22 4 . 5 Critical Kills 1 | . . . . . . . . . . . . . . . 1 . . . . . . Critical Parts Destroyed 4 | . . . . . . . 2 . . . . . . . 2 . . . . . . Critical Strikes 11 | . . . . . . . 2 . 1 1 . . . . 3 . 3 . . . 1 Blast 4 | . . . . . . . . . 1 . . . . . . . 3 . . . . Corrupt 1 | . . . . . . . . . . 1 . . . . . . . . . . . Smash 5 | . . . . . . . 2 . . . . . . . 3 . . . . . . Impale 1 | . . . . . . . . . . . . . . . . . . . . . 1 Melee Attacks 83 | . . . . . . . 9 . . 13 . 1 . . 8 1 8 . . 18 25 Impact 31 | . . . . . . . 9 . . 13 . 1 . . 8 . . . . . . Slashing 40 | . . . . . . . . . . . . . . . . . 8 . . 18 14 Piercing 12 | . . . . . . . . . . . . . . . . 1 . . . . 11 Sneak Attacks 5 | . . . . . . . 3 . . . . . . . . . . . . . 2 Combat Hostiles . | . . . . . . . . . . . . . . . . . . . . . . Follow-up Attacks . | . . . . . . . . . . . . . . . . . . . . . . Damage Inflicted 6032 | 42 379 . 178 38 . 216 552 24 675 486 254 420 181 . 296 . 365 1223 220 . 483 Guns 1902 | 42 194 . 114 38 . 172 285 24 . 50 254 420 181 . . . . . 128 . . Cannons 1756 | . . . 64 . . 44 . . 675 102 . . . . . . 328 221 92 . 230 Explosions 1259 | . 185 . . . . . . . . . . . . . . . . 1002 . . 72 Melee 1112 | . . . . . . . 264 . . 334 . . . . 296 . 37 . . . 181 Ramming 3 | . . . . . . . 3 . . . . . . . . . . . . . . Kinetic 2788 | 14 69 . 108 38 . 216 285 . 675 102 119 177 114 . . . 328 221 92 . 230 Thermal 128 | . . . . . . . . . . . . . . . . . . . 128 . . Explosive 1259 | . 185 . . . . . . . . . . . . . . . . 1002 . . 72 Electromagnetic 742 | 28 125 . 70 . . . . 24 . 50 135 243 67 . . . . . . . . Impact 894 | . . . . . . . 264 . . 334 . . . . 296 . . . . . . Slashing 128 | . . . . . . . . . . . . . . . . . 37 . . . 91 Piercing 90 | . . . . . . . . . . . . . . . . . . . . . 90 Highest Corruption 35 | . . . . . . . . 2 3 3 . . . . . . . . 1 . 35 Average Corruption 8 | . . . . . . . . 2 2 3 . . . . . . . . 1 . 19 Corruption Purged . | . . . . . . . . . . . . . . . . . . . . . . Corruption Blocked 2 | . . . . . . . . . . . . . . . . . . . . . 2 Effects 67 | . . . . . . . . 5 11 4 . . . . . . . . . . 47 Message Errors 14 | . . . . . . . . . 4 2 . . . . . . . . . . 8 Matter Fused 14 | . . . . . . . . 3 . 1 . . . . . . . . . . 10 Heat Flow Errors 9 | . . . . . . . . 1 2 1 . . . . . . . . . . 5 Energy Discharges 7 | . . . . . . . . 1 1 . . . . . . . . . . . 5 Parts Fused 1 | . . . . . . . . . . . . . . . . . . . . . 1 Data Loss (minor) 4 | . . . . . . . . . . . . . . . . . . . . . 4 Data Loss (major) 6 | . . . . . . . . . 2 . . . . . . . . . . . 4 Misfires 2 | . . . . . . . . . 1 . . . . . . . . . . . 1 Alerts 3 | . . . . . . . . . 1 . . . . . . . . . . . 2 Misdirections 7 | . . . . . . . . . . . . . . . . . . . . . 7 Overload Shots . | . . . . . . . . . . . . . . . . . . . . . . Overflow Damage 611 | . 17 . . . . . 199 . 52 110 . . . . 126 . 11 30 . . 66 Projectiles 72 | . . . . . . . . . 52 1 . . . . . . 11 8 . . . Explosions 39 | . 17 . . . . . . . . . . . . . . . . 22 . . . Melee 500 | . . . . . . . 199 . . 109 . . . . 126 . . . . . 66 Knockbacks 19 | . . . . . . . 1 . 7 3 . . . . 3 . 4 1 . . . Impact 6 | . . . . . . . 1 . . 2 . . . . 3 . . . . . . Kinetic 13 | . . . . . . . . . 7 1 . . . . . . 4 1 . . . Secondary . | . . . . . . . . . . . . . . . . . . . . . . Self-Inflicted Damage 172 | . 108 . . . . . 1 . . . . . . . . . . 31 . . 32 Shots 3 | . 1 . . . . . . . . . . . . . . . . 1 . . 1 Rammed 2 | . . . . . . . 2 . . . . . . . . . . . . . . Targets Rammed 2 | . . . . . . . 2 . . . . . . . . . . . . . . Kicked . | . . . . . . . . . . . . . . . . . . . . . . Crushed . | . . . . . . . . . . . . . . . . . . . . . . Highest Temperature 263 | . 54 . 6 . . 13 74 176 124 182 60 141 60 . 9 7 60 199 263 133 243 Average Temperature 46 | . 27 . 4 . . 9 33 70 35 65 30 82 40 . 9 4 16 58 134 33 55 Received Heat Transfer 1631 | . 75 . 93 . . . 882 . 24 . . 120 54 . 135 . . 155 . 66 27 Effects 3 | . . . . . . . . . . . . . . . . . . . . . 3 Interference 3 | . . . . . . . . . . . . . . . . . . . . . 3 Siege Activations . | . . . . . . . . . . . . . . . . . . . . . . Martial Activations . | . . . . . . . . . . . . . . . . . . . . . . Shielding Activations . | . . . . . . . . . . . . . . . . . . . . . . Robots Disrupted . | . . . . . . . . . . . . . . . . . . . . . . Combat Hostiles . | . . . . . . . . . . . . . . . . . . . . . . Robots Corrupted 4 | . . . . . . . 1 . . 1 . . . . 2 . . . . . . Combat Hostiles 3 | . . . . . . . . . . 1 . . . . 2 . . . . . . Parts Fried 8 | . 1 . . . . . 3 . . 2 1 1 . . . . . . . . . Impact Corruptions 13 | . . . . . . . 6 . . 3 . . . . 4 . . . . . . Robots Melted . | . . . . . . . . . . . . . . . . . . . . . . Combat Hostiles . | . . . . . . . . . . . . . . . . . . . . . . Parts Melted . | . . . . . . . . . . . . . . . . . . . . . . Heat Transferred 148 | . . . . . . . . . . . . . . . . . . . 148 . . Parts Sabotaged . | . . . . . . . . . . . . . . . . . . . . . . Parts Stolen 1 | . . . . . . . . . 1 . . . . . . . . . . . . Parts Stripped . | . . . . . . . . . . . . . . . . . . . . . . Power Chain Reactions . | . . . . . . . . . . . . . . . . . . . . . . Alert | -11 -10 -10 -9 -9 -9 -8 -8 -7 -7 -7 -6 -6 -6 -6 -5 -5 -4 -4 -4 -3 -2 ------- Run | Yrd Mat Min Mat Min Exi Min Mat Fac Low Low Fac Low Low Zio Pro Fac Fac Upp Upp Res Res Maximum Alert Level . | . . . . . . . . . . . . . . . . . . . . . . Low Security (%) 100 | 100 100 100 100 100 . 100 100 100 . . 100 . . . . 100 100 . . 100 100 Level 1 . | . . . . . . . . . . . . . . . . . . . . . . Level 2 . | . . . . . . . . . . . . . . . . . . . . . . Level 3 . | . . . . . . . . . . . . . . . . . . . . . . Level 4 . | . . . . . . . . . . . . . . . . . . . . . . Level 5 . | . . . . . . . . . . . . . . . . . . . . . . High Security . | . . . . . . . . . . . . . . . . . . . . . . Max Security . | . . . . . . . . . . . . . . . . . . . . . . Peak Influence 110 | 5 101 21 45 95 . 92 110 42 . . 35 . . . . 20 24 . . 92 72 Initial 92 | . . 21 . 14 . . 16 42 . . 18 . . . . . . . . 92 31 Average 11 | . 30 . 10 15 . 13 27 2 . . 4 . . . . 2 3 . . 20 10 Influence Increases 2571 | 5 187 . 133 95 . 130 340 20 225 160 48 115 165 . 70 28 75 210 50 164 351 Destroy 0b10 Robot/C 1220 | . 100 . 80 80 . 80 120 . 160 120 20 100 80 . 60 . . 140 40 . 40 Destroy 0b10 Robot/NC 100 | 5 20 . 15 . . . 15 5 5 . 10 . . . . . 15 . . . 10 Destroy Leader 194 | . 22 . 16 10 . 20 20 . 30 10 12 . 10 . 10 . 4 10 10 . 10 Allied During Kill 12 | . . . 7 5 . . . . . . . . . . . . . . . . . Successful Hack 57 | . 3 . . . . . . 14 . . 6 . . . . 26 . . . 8 . Disable Machine 45 | . 15 . 15 . . 15 . . . . . . . . . . . . . . . Destroy Structure 208 | . 27 . . . . . 5 1 . . . . . . . 2 26 . . 36 111 Partial Spotted 60 | . . . . . . . . . . . . . . . . . 15 . . 30 15 Lose Combat Pursuer 675 | . . . . . . 15 180 . 30 30 . 15 75 . . . 15 60 . 90 165 Influence Decreases 2519 | 5 133 54 96 132 . 86 290 114 153 202 78 115 100 65 70 28 75 40 83 244 356 Entered New Map 332 | . . 33 . 23 . . 28 52 . 15 12 . . 65 . . . . 33 45 26 Time Decay 1764 | 5 123 21 76 109 . 86 142 62 153 90 66 115 70 . 70 28 75 20 40 189 224 Lost Part 403 | . 10 . . . . . 120 . . 97 . . 30 . . . . 20 10 10 106 Lost Ally 20 | . . . 20 . . . . . . . . . . . . . . . . . . Squads Dispatched 22 | . . . 1 . . . 4 3 . . 1 . . . . 2 . . . 3 8 Investigation 2 | . . . . . . . . . . . . . . . . 1 . . . . 1 Extermination 11 | . . . . . . . . 2 . . 1 . . . . . . . . 3 5 Reinforcement 6 | . . . 1 . . . 1 1 . . . . . . . 1 . . . . 2 Assault . | . . . . . . . . . . . . . . . . . . . . . . Garrison 3 | . . . . . . . 3 . . . . . . . . . . . . . . Intercept . | . . . . . . . . . . . . . . . . . . . . . . Searches Triggered . | . . . . . . . . . . . . . . . . . . . . . . Construction Impeded . | . . . . . . . . . . . . . . . . . . . . . . Haulers Reinforced . | . . . . . . . . . . . . . . . . . . . . . . Active Scanning Responses . | . . . . . . . . . . . . . . . . . . . . . . Cargo Convoy Interrupts . | . . . . . . . . . . . . . . . . . . . . . . Stealth | -11 -10 -10 -9 -9 -9 -8 -8 -7 -7 -7 -6 -6 -6 -6 -5 -5 -4 -4 -4 -3 -2 --------- Run | Yrd Mat Min Mat Min Exi Min Mat Fac Low Low Fac Low Low Zio Pro Fac Fac Upp Upp Res Res Distress Signals 5 | . . . 2 . . . 1 . . . . . . . . . 1 . . . 1 Communications Jammed 2 | . . . . . . . . . . . . . . . . . . . . . 2 Distress Signals 2 | . . . . . . . . . . . . . . . . . . . . . 2 Times Spotted 191 | . 7 . 18 4 . 8 26 1 13 14 2 9 12 . 7 1 3 15 2 15 34 Peak Tracking Total 15 | . 3 . 11 3 . 4 9 1 4 7 1 5 6 . 4 1 2 8 2 10 15 Tactical Retreats 26 | . . . . . . 1 5 . 2 2 . 1 3 . . . 1 2 . 2 7 Traps | -11 -10 -10 -9 -9 -9 -8 -8 -7 -7 -7 -6 -6 -6 -6 -5 -5 -4 -4 -4 -3 -2 ------- Run | Yrd Mat Min Mat Min Exi Min Mat Fac Low Low Fac Low Low Zio Pro Fac Fac Upp Upp Res Res Traps Triggered 3 | . . . . . . . . 2 . . . . . . . . . . . . 1 Indirectly . | . . . . . . . . . . . . . . . . . . . . . . Trap Hack Attempts . | . . . . . . . . . . . . . . . . . . . . . . Triggered . | . . . . . . . . . . . . . . . . . . . . . . Disarmed . | . . . . . . . . . . . . . . . . . . . . . . Reprogrammed . | . . . . . . . . . . . . . . . . . . . . . . Reused . | . . . . . . . . . . . . . . . . . . . . . . Traps Extracted . | . . . . . . . . . . . . . . . . . . . . . . Installed . | . . . . . . . . . . . . . . . . . . . . . . Triggered . | . . . . . . . . . . . . . . . . . . . . . . Machines | -11 -10 -10 -9 -9 -9 -8 -8 -7 -7 -7 -6 -6 -6 -6 -5 -5 -4 -4 -4 -3 -2 ---------- Run | Yrd Mat Min Mat Min Exi Min Mat Fac Low Low Fac Low Low Zio Pro Fac Fac Upp Upp Res Res Machines Disabled 4 | . 1 . 1 . . 1 . . . . . 1 . . . . . . . . . Max in Single Turn 1 | . 1 . . . . 1 . . . . . 1 . . . . . . . . . Machines Repaired . | . . . . . . . . . . . . . . . . . . . . . . Machines Dismantled . | . . . . . . . . . . . . . . . . . . . . . . Machines Sabotaged . | . . . . . . . . . . . . . . . . . . . . . . Overloaded Fab Kills . | . . . . . . . . . . . . . . . . . . . . . . Hacking | -11 -10 -10 -9 -9 -9 -8 -8 -7 -7 -7 -6 -6 -6 -6 -5 -5 -4 -4 -4 -3 -2 --------- Run | Yrd Mat Min Mat Min Exi Min Mat Fac Low Low Fac Low Low Zio Pro Fac Fac Upp Upp Res Res Machines Accessed 31 | . 4 . . 2 5 . . 2 . . 4 . . . . 2 1 . . 6 5 Terminals 11 | . 3 . . 1 . . . . . . 1 . . . . 1 . . . 3 2 Fabricators 1 | . . . . . . . . . . . . . . . . . . . . . 1 Repair Stations 6 | . 1 . . . . . . 2 . . 1 . . . . 1 . . . 1 . Recycling Units 6 | . . . . . . . . . . . 2 . . . . . 1 . . 2 1 Scanalyzers 1 | . . . . . . . . . . . . . . . . . . . . . 1 Garrison Access . | . . . . . . . . . . . . . . . . . . . . . . Total Hacks 92 | . 8 . . 2 50 . . 3 . . 6 . . . . 7 1 . . 8 7 Successful 75 | . 2 . . 1 50 . . 2 . . 4 . . . . 7 1 . . 4 4 Failed 17 | . 6 . . 1 . . . 1 . . 2 . . . . . . . . 4 3 Catastrophic 5 | . 1 . . 1 . . . . . . . . . . . . . . . . 3 Database Lockouts . | . . . . . . . . . . . . . . . . . . . . . . Manual 8 | . 3 . . 1 1 . . . . . . . . . . . . . . 2 1 Terminals 20 | . 6 . . 1 . . . . . . 2 . . . . 3 . . . 4 4 Fabricators 1 | . . . . . . . . . . . . . . . . . . . . . 1 Repair Stations 13 | . 2 . . . . . . 3 . . 2 . . . . 4 . . . 2 . Recycling Units 6 | . . . . . . . . . . . 2 . . . . . 1 . . 2 1 Scanalyzers 1 | . . . . . . . . . . . . . . . . . . . . . 1 Garrison Access . | . . . . . . . . . . . . . . . . . . . . . . Terminal Hacks 57 | . . . . 1 50 . . . . . 1 . . . . 3 . . . 1 1 Record 50 | . . . . . 49 . . . . . . . . . . . . . . . 1 Part Schematic 1 | . . . . . . . . . . . . . . . . 1 . . . . . Open Door 1 | . . . . 1 . . . . . . . . . . . . . . . . . Level Access Points 2 | . . . . . . . . . . . . . . . . 1 . . . 1 . Locate Traps 1 | . . . . . . . . . . . 1 . . . . . . . . . . Zone Layout 1 | . . . . . . . . . . . . . . . . 1 . . . . . Proto ID Catalog 1 | . . . . . 1 . . . . . . . . . . . . . . . . Fabricator Hacks 1 | . . . . . . . . . . . . . . . . . . . . . 1 Load Schematic 1 | . . . . . . . . . . . . . . . . . . . . . 1 Repair Station Hacks 11 | . 2 . . . . . . 2 . . 2 . . . . 4 . . . 1 . Scan Component 6 | . 1 . . . . . . 1 . . 1 . . . . 2 . . . 1 . Repair 5 | . 1 . . . . . . 1 . . 1 . . . . 2 . . . . . Recycling Unit Hacks 5 | . . . . . . . . . . . 1 . . . . . 1 . . 2 1 Report Inventory 5 | . . . . . . . . . . . 1 . . . . . 1 . . 2 1 Scanalyzer 1 | . . . . . . . . . . . . . . . . . . . . . 1 Insert Component 1 | . . . . . . . . . . . . . . . . . . . . . 1 Garrison Access Hacks . | . . . . . . . . . . . . . . . . . . . . . . Unauthorized Hacks . | . . . . . . . . . . . . . . . . . . . . . . Terminals . | . . . . . . . . . . . . . . . . . . . . . . Fabricators . | . . . . . . . . . . . . . . . . . . . . . . Repair Stations . | . . . . . . . . . . . . . . . . . . . . . . Recycling Units . | . . . . . . . . . . . . . . . . . . . . . . Scanalyzers . | . . . . . . . . . . . . . . . . . . . . . . Garrison Access . | . . . . . . . . . . . . . . . . . . . . . . Data Cores Recovered 3 | . 1 . . . . . . 1 . . . . . . . . 1 . . . . Used . | . . . . . . . . . . . . . . . . . . . . . . Hacking Detections 14 | . 2 . . 1 . . . 2 . . 3 . . . . 2 . . . 1 3 Full Trace Events 2 | . . . . . . . . . . . . . . . . 1 . . . . 1 Feedback Events . | . . . . . . . . . . . . . . . . . . . . . . Feedback Blocked . | . . . . . . . . . . . . . . . . . . . . . . Robot Schematics Acquired . | . . . . . . . . . . . . . . . . . . . . . . Robots Built . | . . . . . . . . . . . . . . . . . . . . . . Authchips . | . . . . . . . . . . . . . . . . . . . . . . Time . | . . . . . . . . . . . . . . . . . . . . . . Total Robot Build Rating . | . . . . . . . . . . . . . . . . . . . . . . Part Schematics Acquired 1 | . . . . . . . . . . . . . . . . 1 . . . . . Parts Built . | . . . . . . . . . . . . . . . . . . . . . . Authchips . | . . . . . . . . . . . . . . . . . . . . . . Time . | . . . . . . . . . . . . . . . . . . . . . . Total Part Build Rating . | . . . . . . . . . . . . . . . . . . . . . . Parts Repaired 5 | . 1 . . . . . . 1 . . 1 . . . . 2 . . . . . Time 99 | . 26 . . . . . . 22 . . 13 . . . . 38 . . . . . Parts Recycled . | . . . . . . . . . . . . . . . . . . . . . . Recycled Matter . | . . . . . . . . . . . . . . . . . . . . . . Retrieved Matter . | . . . . . . . . . . . . . . . . . . . . . . Retrieved Components . | . . . . . . . . . . . . . . . . . . . . . . Parts Scanalyzed . | . . . . . . . . . . . . . . . . . . . . . . Part Schematics Acquired . | . . . . . . . . . . . . . . . . . . . . . . Parts Damaged . | . . . . . . . . . . . . . . . . . . . . . . Bothacking | -11 -10 -10 -9 -9 -9 -8 -8 -7 -7 -7 -6 -6 -6 -6 -5 -5 -4 -4 -4 -3 -2 ------------ Run | Yrd Mat Min Mat Min Exi Min Mat Fac Low Low Fac Low Low Zio Pro Fac Fac Upp Upp Res Res Used RIF Installer . | . . . . . . . . . . . . . . . . . . . . . . Robots Hacked . | . . . . . . . . . . . . . . . . . . . . . . Non-combat . | . . . . . . . . . . . . . . . . . . . . . . Combat . | . . . . . . . . . . . . . . . . . . . . . . Robot Hacks Applied . | . . . . . . . . . . . . . . . . . . . . . . Relay Couplers Released . | . . . . . . . . . . . . . . . . . . . . . . Fabnet Peak Effective % . | . . . . . . . . . . . . . . . . . . . . . . Robots Rewired . | . . . . . . . . . . . . . . . . . . . . . . Allies Hacked . | . . . . . . . . . . . . . . . . . . . . . . Hacks Repelled . | . . . . . . . . . . . . . . . . . . . . . . Allies | -11 -10 -10 -9 -9 -9 -8 -8 -7 -7 -7 -6 -6 -6 -6 -5 -5 -4 -4 -4 -3 -2 -------- Run | Yrd Mat Min Mat Min Exi Min Mat Fac Low Low Fac Low Low Zio Pro Fac Fac Upp Upp Res Res Total Allies 2 | . . 2 . . . . . . . . . . . . . . . . . . . Largest Group 2 | . . 2 2 1 1 . . . . . . . . . . . . . . . . Highest-Rated Group 41 | . . 41 41 31 31 . . . . . . . . . . . . . . . . Highest-Rated Ally 31 | . . 31 31 31 31 . . . . . . . . . . . . . . . . Total Orders 6 | . . . . . . . . . . . . . . . . . 1 . . 3 2 RETURN 6 | . . . . . . . . . . . . . . . . . 1 . . 3 2 Ally Attacks 16 | . . . 11 5 . . . . . . . . . . . . . . . . . Total Damage 191 | . . . 149 42 . . . . . . . . . . . . . . . . . Kills 4 | . . . 3 1 . . . . . . . . . . . . . . . . . Allies Corrupted . | . . . . . . . . . . . . . . . . . . . . . . Allies Melted . | . . . . . . . . . . . . . . . . . . . . . . Intel | -11 -10 -10 -9 -9 -9 -8 -8 -7 -7 -7 -6 -6 -6 -6 -5 -5 -4 -4 -4 -3 -2 ------- Run | Yrd Mat Min Mat Min Exi Min Mat Fac Low Low Fac Low Low Zio Pro Fac Fac Upp Upp Res Res Active Infowar (turns) 7802 | 2 341 815 405 790 538 . 3 858 495 3 1 90 . 314 181 222 426 138 80 601 1499 Optics 3086 | . . . . . . . . . . . . . . 314 181 222 426 138 80 601 1124 Terrain 4246 | 2 341 815 405 790 538 . 2 858 495 . . . . . . . . . . . . Seismic 652 | . . . . . . . . 649 . 3 . . . . . . . . . . . Decoding 2964 | . . . . . . . . . . . . . . . . 220 426 138 80 601 1499 Cloaking 121 | . . . . . . . 1 1 . . 1 90 . . . . . . . 22 6 Jamming 812 | . . . . . . . . . . . . . . . . . . . . . 812 ECM 77 | . . . . . . . . 77 . . . . . . . . . . . . . Robot Analysis Total . | . . . . . . . . . . . . . . . . . . . . . . Derelict Logs Recovered 15 | . . 2 . 3 . . . . 3 . . 2 1 3 1 . . . . . . Drone Launches 6 | . . . . . . . . . . . . . . . . . 1 . . 3 2 Drone Recoveries 6 | . . . . . . . . . . . . . . . . . 1 . . 3 2 Decoded 0b10 Intel 80 | . . . . . . . . . . . . . . . . 6 12 . . 16 46 Traps 8 | . . . . . . . . . . . . . . . . . 1 . . 1 6 Emergency Access 3 | . . . . . . . . . . . . . . . . . . . . . 3 Items 52 | . . . . . . . . . . . . . . . . 6 9 . . 11 26 Machines 8 | . . . . . . . . . . . . . . . . . . . . 2 6 Patrols 4 | . . . . . . . . . . . . . . . . . 1 . . . 3 Guards 4 | . . . . . . . . . . . . . . . . . . . . 2 2 Exits 1 | . . . . . . . . . . . . . . . . . 1 . . . . Exploration | -11 -10 -10 -9 -9 -9 -8 -8 -7 -7 -7 -6 -6 -6 -6 -5 -5 -4 -4 -4 -3 -2 ------------- Run | Yrd Mat Min Mat Min Exi Min Mat Fac Low Low Fac Low Low Zio Pro Fac Fac Upp Upp Res Res Turns Passed 10864 | 71 341 815 405 792 794 663 524 860 825 207 596 260 193 371 181 222 426 138 80 601 1499 Spaces Moved 12234 | 64 288 443 275 763 818 597 348 697 771 274 836 542 445 861 313 364 524 271 145 1033 1562 Core 432 | 21 . . . . . . . . . 269 31 . . . . . . . . . 111 Treads . | . . . . . . . . . . . . . . . . . . . . . . Legs 165 | . . . . . . . . . . . 165 . . . . . . . . . . Wheels 4949 | 43 288 443 275 763 818 597 249 697 771 5 . . . . . . . . . . . Hover 6589 | . . . . . . . . . . . 640 542 445 861 313 364 524 271 145 1033 1451 Flight 99 | . . . . . . . 99 . . . . . . . . . . . . . . Fastest Speed 34 | 50 80 80 80 83 83 98 34 100 100 50 38 38 38 40 40 48 42 42 42 42 42 Average Speed 63 | 70 80 80 80 83 87 98 99 100 100 50 50 38 38 40 45 50 45 42 42 42 44 Slowest Speed 1000 | 80 95 80 95 83 98 98 200 115 100 100 200 38 42 40 108 52 48 42 42 45 1000 Overloaded Moves . | . . . . . . . . . . . . . . . . . . . . . . Propulsion Burnouts . | . . . . . . . . . . . . . . . . . . . . . . Robots Hopped . | . . . . . . . . . . . . . . . . . . . . . . Potential Cave-ins . | . . . . . . . . . . . . . . . . . . . . . . Cave-ins Triggered 2 | . . . . . . . . . . . . . . . . . . . . . 2 Exploration Rate (%) 46 | 4 45 83 29 98 93 68 43 15 87 28 21 59 58 86 49 7 9 52 23 27 32 Regions Visited 21 Branch Regions 12 Pre-discovered Areas 3 | . . 1 . . 1 . . . . . . . . 1 . . . . . . . Known Exits Taken 13 | . . . . . . . 1 1 1 . 1 1 1 1 1 1 1 1 1 1 . Unknown Exits Taken 8 | 1 1 1 1 1 1 1 . . . 1 . . . . . . . . . . . Scrap Searched 22 | . . 1 . 2 . 1 . . 4 1 . 3 2 1 3 . . 3 1 . . Spaces Dug 53 | . . . . . . . 5 . . . . . . . . 1 7 . . 18 22 Terrain Destroyed 200 | . 37 . . . . . 5 . 6 3 . . . . . 1 11 79 4 18 36 Melee 53 | . . . . . . . 5 . . . . . . . . 1 7 . . 18 22 Projectile 22 | . . . . . . . . . 6 3 . . . . . . 4 2 4 . 3 AOE 125 | . 37 . . . . . . . . . . . . . . . . 77 . . 11 Terrain Rammed . | . . . . . . . . . . . . . . . . . . . . . . Walls Destroyed . | . . . . . . . . . . . . . . . . . . . . . . Machines Disabled . | . . . . . . . . . . . . . . . . . . . . . . Actions | -11 -10 -10 -9 -9 -9 -8 -8 -7 -7 -7 -6 -6 -6 -6 -5 -5 -4 -4 -4 -3 -2 --------- Run | Yrd Mat Min Mat Min Exi Min Mat Fac Low Low Fac Low Low Zio Pro Fac Fac Upp Upp Res Res Total 14956 | 85 369 903 442 914 895 654 492 852 790 308 1003 564 457 886 336 402 679 279 153 1173 2320 Wait 2069 | . 41 461 145 137 73 40 84 99 . 6 92 . . . . 9 110 . . 98 674 Move 12213 | 63 287 442 274 762 817 596 347 696 770 273 835 541 444 860 312 363 523 270 144 1032 1562 Hop . | . . . . . . . . . . . . . . . . . . . . . . Pick Up 174 | 13 13 . 7 4 2 3 8 21 1 . 33 2 2 12 5 11 8 . 2 8 19 Fast Attach . | . . . . . . . . . . . . . . . . . . . . . . Attach 108 | 7 2 . 2 1 1 1 14 12 1 5 16 . 3 6 6 9 2 . 2 5 13 Detach 10 | . . . 1 . . . 4 2 . . 2 . . . 1 . . . . . . Swap 57 | . 3 . 3 2 . . 5 9 1 . 3 3 1 4 2 3 6 2 . 5 5 Drop 84 | . 7 . 2 4 2 3 4 6 . 4 14 2 1 4 1 6 5 . . 7 12 Fire 149 | 2 16 . 8 4 . 11 15 1 17 7 8 15 6 . 1 . 17 7 5 . 9 Melee 83 | . . . . . . . 9 . . 13 . 1 . . 8 1 8 . . 18 25 Ram 3 | . . . . . . . 2 . . . . . . . . . . . . . 1 Kick . | . . . . . . . . . . . . . . . . . . . . . . Crush . | . . . . . . . . . . . . . . . . . . . . . . Escape Stasis 6 | . . . . . . . . 6 . . . . . . . . . . . . . Rewire . | . . . . . . . . . . . . . . . . . . . . . . Trap . | . . . . . . . . . . . . . . . . . . . . . . Miscellaneous . | . . . . . . . . . . . . . . . . . . . . . . Route ------- -11/Scrapyard -10/Materials (discovered 2 exits: *Mat / [*Min]) -10/Mines -9/Materials -9/Mines (discovered 3 exits: [*Mat x2] / *Exi) -9/Exiles (discovered 2 exits: [*Min x2]) -8/Mines -8/Materials (discovered 2 exits: *Fac x2) -7/Factory -7/Lower Caves -7/Lower Caves -6/Factory (discovered 2 exits: Fac / *Low) -6/Lower Caves -6/Lower Caves (discovered 2 exits: *Fac / *Zio) -6/Zion -5/Proximity Caves -5/Factory (discovered 5 exits: *Fac x4 / *Upp) -4/Factory -4/Upper Caves -4/Upper Caves -3/Research (discovered 4 exits: *Res x3 / *Tes) -2/Research History --------- Turn | Location | Event 2 | -11/Scrapyard | Met Revision 17 22 | -11/Scrapyard | Discovered new exit (range 14) 72 | -11/Scrapyard | Entered Materials 200 | -10/Materials | Discovered new exit (range 5) 317 | -10/Materials | Build established: Mutant 324 | -10/Materials | Core integrity fell below 50% 368 | -10/Materials | Repaired Wheel 398 | -10/Materials | Discovered new exit (range 13) 413 | -10/Materials | Entered Mines 426 | -10/Mines | Learned Materials terminal intel 442 | -10/Mines | Met a Derelict bent on vengeance 1190 | -10/Mines | Learned location of Storage (-9) 1198 | -10/Mines | Discovered new exit (range 8) 1228 | -10/Mines | Entered Materials 1228 | -9/Materials | Accompanied by 2 allies 1228 | -9/Materials | Evolved 2 slots: Propulsion x1, Utility x1 1229 | -9/Materials | Loaded intel: 12 terminal locations 1233 | -9/Materials | Led the pair of lost Derelicts to an unsafe place 1618 | -9/Materials | Discovered new exit (range 14) 1633 | -9/Materials | Entered Mines 1633 | -9/Mines | Accompanied by 1 ally 1855 | -9/Mines | Found a hidden stash of uninstalled traps 1922 | -9/Mines | Build established: Scavenger-Mutant 1957 | -9/Mines | Discovered new exit (range 10) 2016 | -9/Mines | Discovered new exit (range 9) 2109 | -9/Mines | Found a Scrap Suit stashed away for nefarious purposes 2111 | -9/Mines | Found Scrap Suit 2115 | -9/Mines | Learned 4 Materials zone layouts 2186 | -9/Mines | Learned Materials terminal intel 2319 | -9/Mines | Found the Drone Emporium 2324 | -9/Mines | Found Prototype Device 2414 | -9/Mines | Deemed a non-threat by the Exiles lab entrance 2415 | -9/Mines | Discovered new exit (range 5) 2425 | -9/Mines | Entered Exiles 2425 | -9/Exiles | Accompanied by 1 ally 2437 | -9/Exiles | Discovered new exit (range 15) 2449 | -9/Exiles | Met 8R-AWN 2455 | -9/Exiles | Led the pair of lost Derelicts to a safe place 2529 | -9/Exiles | Met EX-HEX 2569 | -9/Exiles | Met EX-DEC 2625 | -9/Exiles | Met EX-BIN 2657 | -9/Exiles | Learned location of Zion (-6) 2685 | -9/Exiles | Discovered new exit (range 14) 2756 | -9/Exiles | Visited The Gauntlet 2907 | -9/Exiles | Aligned with FarCom system 2907 | -9/Exiles | Given EX-Vault access code 2955 | -9/Exiles | Opened EX-Vault 2964 | -9/Exiles | Identified Decoy Drone Bay 2968 | -9/Exiles | Found Cloak of Protection 2990 | -9/Exiles | Warned to stay clear of 0b10 Research branches 3219 | -9/Exiles | Left Exiles lab with Cloak of Protection 3219 | -9/Exiles | Entered Mines 3872 | -8/Mines | Discovered new exit (range 11) 3882 | -8/Mines | Entered Materials 3882 | -8/Materials | Evolved 2 slots: Utility x2 3883 | -8/Materials | Identified exit to Factory 3884 | -8/Materials | Loaded intel: 12 terminal locations 4156 | -8/Materials | Garrison activated, responded to threat 4214 | -8/Materials | Build established: Mutant 4218 | -8/Materials | Lost 8 parts (1p3n2u2w) 4243 | -8/Materials | Core integrity fell below 50% 4344 | -8/Materials | Core integrity fell below 20% 4358 | -8/Materials | Lost 3 parts (1p1u1w) 4404 | -8/Materials | Discovered exit to Factory (range 3) 4406 | -8/Materials | Entered Factory 4406 | -7/Factory | Evolved 2 slots: Propulsion x1, Utility x1 4955 | -7/Factory | Build established: Skirmisher 5034 | -7/Factory | Repaired Arm. Huge Wheel 5206 | -7/Factory | Discovered new exit (range 16) 5220 | -7/Factory | Identified exit to Lower Caves 5266 | -7/Factory | Entered Lower Caves 5281 | -7/Lower Caves | Learned location of 1 exit from Factory 5399 | -7/Lower Caves | Encountered a Warlord checkpoint 5522 | -7/Lower Caves | Spotted B-75 Beast 5559 | -7/Lower Caves | Build established: Mutant 6064 | -7/Lower Caves | Identified exit to Lower Caves 6091 | -7/Lower Caves | Entered another Lower Caves area 6135 | -7/Lower Caves | Core integrity fell below 50% 6166 | -7/Lower Caves | Core integrity fell below 20% 6182 | -7/Lower Caves | Lost 11 parts (2p3n3u3w) 6185 | -7/Lower Caves | Discovered new exit (range 5) 6298 | -7/Lower Caves | Entered Factory 6298 | -6/Factory | Evolved 2 slots: Power x1, Utility x1 6299 | -6/Factory | Identified exit to Lower Caves 6300 | -6/Factory | Identified exit to Factory 6621 | -6/Factory | Repaired Sml. Storage Unit 6663 | -6/Factory | Build established: Hacker-Mutant 6894 | -6/Factory | Entered Lower Caves 6912 | -6/Lower Caves | Attracted the attention of an 0b10 checkpoint 6998 | -6/Lower Caves | Learned Factory terminal intel 7039 | -6/Lower Caves | Learned Factory trap positions 7090 | -6/Lower Caves | Encountered a Warlord checkpoint 7096 | -6/Lower Caves | Discovered new exit (range 15) 7101 | -6/Lower Caves | Identified exit to Lower Caves 7126 | -6/Lower Caves | Attacked by a delusional Derelict stockpiling parts 7154 | -6/Lower Caves | Entered another Lower Caves area 7154 | -6/Lower Caves | Spotted B-75 Beast 7155 | -6/Lower Caves | Encountered a Warlord checkpoint 7182 | -6/Lower Caves | Attracted the attention of an 0b10 checkpoint 7197 | -6/Lower Caves | Learned Factory stockpile data 7231 | -6/Lower Caves | Discovered exit to Factory (range 11) 7336 | -6/Lower Caves | Discovered new exit (range 16) 7342 | -6/Lower Caves | Identified exit to Zion 7347 | -6/Lower Caves | Entered Zion 7351 | -6/Zion | Lost 3 parts (1n1u1w) 7368 | -6/Zion | Discovered new exit (range 16) 7371 | -6/Zion | Found CR-A16's Pointy Stick 7377 | -6/Zion | Identified exit to Proximity Caves 7403 | -6/Zion | Found Prototype Processor 7404 | -6/Zion | Identified Spectral Analyzer 7406 | -6/Zion | Found Prototype Processor 7407 | -6/Zion | Identified Exp. Melee Analysis Suite 7409 | -6/Zion | Found Prototype Processor 7410 | -6/Zion | Identified Exp. Armor Integrity Analyzer 7411 | -6/Zion | Found Prototype Hackware 7412 | -6/Zion | Identified Exp. Hacking Suite 7442 | -6/Zion | Learned location of 1 exit from Factory 7509 | -6/Zion | Found Prototype Special Weapon 7510 | -6/Zion | Identified RU-N14's Throwing Claymores 7557 | -6/Zion | Learned location of Warlord (-5) 7567 | -6/Zion | Learned Factory machine intel 7573 | -6/Zion | Learned 4 Factory zone layouts 7577 | -6/Zion | Given the Hacking Drone Bay 7579 | -6/Zion | Found Prototype Device 7635 | -6/Zion | Rebuked by Imprinter 7718 | -6/Zion | Entered Proximity Caves 7763 | -5/Proximity Caves | Lost 3 parts (2n1w) 7771 | -5/Proximity Caves | Learned Factory machine intel 7890 | -5/Proximity Caves | Discovered exit to Factory (range 19) 7899 | -5/Proximity Caves | Entered Factory 7899 | -5/Factory | Evolved 2 slots: Utility x2 7900 | -5/Factory | Identified exit to Factory 7900 | -5/Factory | Identified Hacking Drone Bay 7902 | -5/Factory | Loaded intel: 94 trap records 7904 | -5/Factory | Loaded intel: 277 machine locations 7905 | -5/Factory | Loaded intel: 26 terminal locations 7929 | -5/Factory | Repaired Sml. Storage Unit 7959 | -5/Factory | Repaired Imp. Gravmag System? 7982 | -5/Factory | Discovered new exit (range 6) 7984 | -5/Factory | Identified exit to Upper Caves 8121 | -5/Factory | Entered another Factory area 8121 | -4/Factory | Evolved 2 slots: Propulsion x1, Utility x1 8122 | -4/Factory | Loaded intel: 279 machine locations 8517 | -4/Factory | Identified exit to Upper Caves 8547 | -4/Factory | Entered Upper Caves 8660 | -4/Upper Caves | Attracted the attention of an 0b10 outpost 8682 | -4/Upper Caves | Discovered new exit (range 7) 8685 | -4/Upper Caves | Identified exit to Upper Caves 8685 | -4/Upper Caves | Entered another Upper Caves area 8692 | -4/Upper Caves | Destroyed 7 combat bots 8729 | -4/Upper Caves | Lost 3 parts (1p1u1w) 8764 | -4/Upper Caves | Discovered new exit (range 3) 8765 | -4/Upper Caves | Identified exit to Research 8765 | -4/Upper Caves | Entered Research 8765 | -3/Research | Evolved 2 slots: Utility x2 8909 | -3/Research | Discovered new exit (range 11) 8913 | -3/Research | Identified exit to Testing 9284 | -3/Research | Identified exit to Research 9344 | -3/Research | Spotted B-86 Titan 9366 | -3/Research | Entered another Research area 9366 | -2/Research | Evolved 2 slots: Propulsion x1, Utility x1 9848 | -2/Research | Spotted B-90 Cyclops 9913 | -2/Research | Crushed by falling debris 9913 | -2/Research | System corruption reached 10% 9923 | -2/Research | Crushed by falling debris 9970 | -2/Research | Lost 5 parts (1p4u) 9995 | -2/Research | Found Prototype Device 9996 | -2/Research | Identified Exp. Transmission Jammer 10245 | -2/Research | Build established: Scavenger-Mutant 10508 | -2/Research | Found Prototype Device 10790 | -2/Research | System corruption reached 30% 10838 | -2/Research | Identified Exp. EM Shield 10841 | -2/Research | Core integrity fell below 50% 10851 | -2/Research | Core integrity fell below 20% 10865 | -2/Research | Destroyed by P-80 Master with Gamma Rifle Last Messages --------------- P-80 Master resets P-80 Master, system corruption cleaned. U-05 Engineer lays Concrete. K-01 Serf destroyed. Acquired 8 matter. System corrupted: Energy discharge (-31). K-01 Serf collects debris. Knocked back. Penetrated by Slug. Slug penetrates Wall. K-01 Serf destroyed. P-80 Master resets M-36 Artificer, system corruption cleaned. Slug penetrates Wall. Connecting with Door Terminal... ALERT: Suspicious activity at Terminal R001. Dispatching Investigation squad. Penetrated by Slug. Adv. Targeting Computer destroyed. Adv. Signal Interpreter destroyed. Map ----- +----------------------------------------------------+ | #""" #????# # #???????????????? | | #""" #????# # ! #???????????????? | | #""" #????# # #########???????? | | # #????# # ## /= #???????? | | # #????# # ## / #???????? | | #######+###### #####+###+####### #???????? | | + ] #???????? | | ##+####### #???????? | | # #?# = !#???????? | | ^ # !#?####+###???????? | | ###+###### ########### ###### #?????????? | | # #??# #???#####?# + #?????????? | | # #??# ##????????# ########?????????? | | # =#??# ##????????# !#????????????????? | | # !!#### ##????????########????????????????? | | # [/ #?????????????????????????????????? | | # ## #?????????????????????????????????? | | # ## #?????????????????????????????????? | | # ! ## #?????????????????????????????????? | | # + +?????????????????????????????????? | | # ## #?????????????????????????????????? | | # ## #?????????????????????????????????? | | # ! ## #?????????????????????????????????? | | #/###### #?????????##"?????????????????????? | | ##### ###### ########### "?????????????????????? | | ##### @ "?????????????????????? | | kp p "?????????????????????? | | ##### h up "?????????????????????? | | ????## ##### p###########T"?????????????????????? | | ?#####/##### pp#?? ##"?????????????????????? | | ?# #hp # #???????????????????????? | | ?# /p + #???????????????????????? | | ?# ! ! #pH%# #???????????????????????? | | ?# =# #??########???????????????????????? | | ############ ##????????????????????????????????? | | ####### #????????????????????????????????? | | % = w# """ ?????????????????????????? | | ! %* / """ #???????????????????????? | | ! * # """ #???????????????????????? | | ####### #????" #???????????????????????? | | ## ########????????#???????????????????????? | | #??????????w????????????????????????? | | ! #???????????????????????????????????? | | #???????????????????????????????????? | | * #???????????????????????????????????? | | #???????????????????????????????????? | | ! #???????????????????????????????????? | | ## !! [#???????????????????????????????????? | | ?### !! #???????????????????????????????????? | | ##############???????????????????????????????????? | +----------------------------------------------------+ Best States ------------- Heat Dissipation 68 Energy Generation 43 Energy Capacity 400 Matter Stores 300 Matter Capacity 300 Sight Range 24 Terrain Scan Range 16 Terrain Scan Density 110 ECM Strength 1 Jamming Range 22 Cloak Strength 5 Corruption Block 15 Armor Coverage 375 Resistance: KI 30 Evasion (%) 68 Targeting Accuracy 14 Offensive Hacking 36 Defensive Hacking 10 Item Schematics ----------------- Antigrav System | -5/Factory | Hacked Robot Schematics ------------------ None Fabricated ------------ Nothing Repaired ---------- Wheel | 35% | -10/Materials Arm. Huge Wheel | 10% | -7/Factory Sml. Storage Unit | 45% | -6/Factory Sml. Storage Unit | 30% | -5/Factory Imp. Gravmag System | 20% | -5/Factory Alien Tech Used ----------------- None Achievements -------------- Decoder Ring Challenges ------------ None Game ------ Seed BladeTractorBrace Manual? 0 Play Time 03:21:17 Cumulative 65.6 hours Start 2025.07.14 @ 08:22:00 End 2025.07.15 @ 09:31:52 Sessions 13 Manual Loads 0 Difficulty Rogue Special Mode None Game No. 63 Rogue 53 Adventurer 10 Explorer 0 Win Type - Total 1 Types 1/0/0/0/0/0/0/0/0/0 Lore% 28 Gallery% 39 Achievement% 32 Wizard Run 0 Options --------- Layout 1 ASCII 0 Keyboard 0 Movement Numpad Keybinds 0 Fullscreen 1 Font 24/Smallcaps Map View 50x35 Zoom Use 0% Tactical HUD 0 Map Filters NONE Filters NONE Steam 1 RUN: 28b4055c-309a-46b2-ac39-ad62bf8c3eff